Workbook

Sheet ข้อมูลค่าน้ำตาลในเลือด
B1: การติดตามค่าน้ำตาลในเลือด
B2: ความคืบหน้าแสดงในรูปแผนภูมิ
B3: แผนภูมิเส้นติดตามค่าน้ำตาลในเลือดพร้อมกับค่าเฉลี่ยการเพิ่มและลดของน้ำตาลในเลือด
F4: ข้อมูล: ค่าเฉลี่ยการเปลี่ยนแปลง มีหลายปัจจัยที่จะรักษาระดับน้ำตาลของคุณให้อยู่ในเกณฑ์ปกติ และไม่ได้ขึ้นอยู่กับน้ำตาลเพียงอย่างเดียว ปรึกษาแพทย์เพื่อรับข้อมูลเพิ่มเติมหรือติดตามผล
B5: การใส่ข้อมูล
B7: วันที่ | C7: เวลา | D7: ค่าน้ำตาลในเลือด (มก./ดล.) | E7: ค่าเฉลี่ยการเพิ่มและลดของน้ำตาลในเลือด
B8: =TODAY()-6 -> 2018-11-03 | C8: 08:45:00 | D8: 126 | E8: =IFERROR(AVERAGE(INDEX(ค่าน้ำตาลในเลือด[ค่าน้ำตาลในเลือด (มก./ดล.)],1,1):ค่าน้ำตาลในเลือด[[#This Row],[ค่าน้ำตาลในเลือด (มก./ดล.)]]), "") -> 126.0
B9: 2018-11-03 | C9: 12:30:00 | D9: 115 | E9: =IFERROR(AVERAGE(INDEX(ค่าน้ำตาลในเลือด[ค่าน้ำตาลในเลือด (มก./ดล.)],1,1):ค่าน้ำตาลในเลือด[[#This Row],[ค่าน้ำตาลในเลือด (มก./ดล.)]]), "") -> 120.5
B10: =TODAY()-6 -> 2018-11-03 | C10: 19:15:00 | D10: 100 | E10: =IFERROR(AVERAGE(INDEX(ค่าน้ำตาลในเลือด[ค่าน้ำตาลในเลือด (มก./ดล.)],1,1):ค่าน้ำตาลในเลือด[[#This Row],[ค่าน้ำตาลในเลือด (มก./ดล.)]]), "") -> 113.7
B11: =TODAY()-5 -> 2018-11-04 | C11: 08:00:00 | D11: 132 | E11: =IFERROR(AVERAGE(INDEX(ค่าน้ำตาลในเลือด[ค่าน้ำตาลในเลือด (มก./ดล.)],1,1):ค่าน้ำตาลในเลือด[[#This Row],[ค่าน้ำตาลในเลือด (มก./ดล.)]]), "") -> 118.3
B12: 2018-11-04 | C12: 12:15:00 | D12: 100 | E12: =IFERROR(AVERAGE(INDEX(ค่าน้ำตาลในเลือด[ค่าน้ำตาลในเลือด (มก./ดล.)],1,1):ค่าน้ำตาลในเลือด[[#This Row],[ค่าน้ำตาลในเลือด (มก./ดล.)]]), "") -> 114.6
B13: =TODAY()-5 -> 2018-11-04 | C13: 18:45:00 | D13: 112 | E13: =IFERROR(AVERAGE(INDEX(ค่าน้ำตาลในเลือด[ค่าน้ำตาลในเลือด (มก./ดล.)],1,1):ค่าน้ำตาลในเลือด[[#This Row],[ค่าน้ำตาลในเลือด (มก./ดล.)]]), "") -> 114.2
B14: =TODAY()-4 -> 2018-11-05 | C14: 07:30:00 | D14: 117 | E14: =IFERROR(AVERAGE(INDEX(ค่าน้ำตาลในเลือด[ค่าน้ำตาลในเลือด (มก./ดล.)],1,1):ค่าน้ำตาลในเลือด[[#This Row],[ค่าน้ำตาลในเลือด (มก./ดล.)]]), "") -> 114.6
B15: =TODAY()-4 -> 2018-11-05 | C15: 11:30:00 | D15: 115 | E15: =IFERROR(AVERAGE(INDEX(ค่าน้ำตาลในเลือด[ค่าน้ำตาลในเลือด (มก./ดล.)],1,1):ค่าน้ำตาลในเลือด[[#This Row],[ค่าน้ำตาลในเลือด (มก./ดล.)]]), "") -> 114.6
B16: =TODAY()-4 -> 2018-11-05 | C16: 17:00:00 | D16: 112 | E16: =IFERROR(AVERAGE(INDEX(ค่าน้ำตาลในเลือด[ค่าน้ำตาลในเลือด (มก./ดล.)],1,1):ค่าน้ำตาลในเลือด[[#This Row],[ค่าน้ำตาลในเลือด (มก./ดล.)]]), "") -> 114.3
B17: =TODAY()-3 -> 2018-11-06 | C17: 07:30:00 | D17: 120 | E17: =IFERROR(AVERAGE(INDEX(ค่าน้ำตาลในเลือด[ค่าน้ำตาลในเลือด (มก./ดล.)],1,1):ค่าน้ำตาลในเลือด[[#This Row],[ค่าน้ำตาลในเลือด (มก./ดล.)]]), "") -> 114.9
B18: 2018-11-06 | C18: 11:30:00 | D18: 118 | E18: =IFERROR(AVERAGE(INDEX(ค่าน้ำตาลในเลือด[ค่าน้ำตาลในเลือด (มก./ดล.)],1,1):ค่าน้ำตาลในเลือด[[#This Row],[ค่าน้ำตาลในเลือด (มก./ดล.)]]), "") -> 115.2
B19: =TODAY()-3 -> 2018-11-06 | C19: 17:00:00 | D19: 102 | E19: =IFERROR(AVERAGE(INDEX(ค่าน้ำตาลในเลือด[ค่าน้ำตาลในเลือด (มก./ดล.)],1,1):ค่าน้ำตาลในเลือด[[#This Row],[ค่าน้ำตาลในเลือด (มก./ดล.)]]), "") -> 114.1
B20: =TODAY()-2 -> 2018-11-07 | C20: 07:30:00 | D20: 124 | E20: =IFERROR(AVERAGE(INDEX(ค่าน้ำตาลในเลือด[ค่าน้ำตาลในเลือด (มก./ดล.)],1,1):ค่าน้ำตาลในเลือด[[#This Row],[ค่าน้ำตาลในเลือด (มก./ดล.)]]), "") -> 114.8
B21: 2018-11-07 | C21: 11:30:00 | D21: 100 | E21: =IFERROR(AVERAGE(INDEX(ค่าน้ำตาลในเลือด[ค่าน้ำตาลในเลือด (มก./ดล.)],1,1):ค่าน้ำตาลในเลือด[[#This Row],[ค่าน้ำตาลในเลือด (มก./ดล.)]]), "") -> 113.8
B22: =TODAY()-2 -> 2018-11-07 | C22: 17:00:00 | D22: 99 | E22: =IFERROR(AVERAGE(INDEX(ค่าน้ำตาลในเลือด[ค่าน้ำตาลในเลือด (มก./ดล.)],1,1):ค่าน้ำตาลในเลือด[[#This Row],[ค่าน้ำตาลในเลือด (มก./ดล.)]]), "") -> 112.8
B23: =TODAY()-1 -> 2018-11-08 | C23: 07:30:00 | D23: 132 | E23: =IFERROR(AVERAGE(INDEX(ค่าน้ำตาลในเลือด[ค่าน้ำตาลในเลือด (มก./ดล.)],1,1):ค่าน้ำตาลในเลือด[[#This Row],[ค่าน้ำตาลในเลือด (มก./ดล.)]]), "") -> 114.0
B24: 2018-11-08 | C24: 11:30:00 | D24: 120 | E24: =IFERROR(AVERAGE(INDEX(ค่าน้ำตาลในเลือด[ค่าน้ำตาลในเลือด (มก./ดล.)],1,1):ค่าน้ำตาลในเลือด[[#This Row],[ค่าน้ำตาลในเลือด (มก./ดล.)]]), "") -> 114.4
B25: =TODAY()-1 -> 2018-11-08 | C25: 17:00:00 | D25: 100 | E25: =IFERROR(AVERAGE(INDEX(ค่าน้ำตาลในเลือด[ค่าน้ำตาลในเลือด (มก./ดล.)],1,1):ค่าน้ำตาลในเลือด[[#This Row],[ค่าน้ำตาลในเลือด (มก./ดล.)]]), "") -> 113.6
B26: =TODAY() -> 2018-11-09 | C26: 07:30:00 | D26: 113 | E26: =IFERROR(AVERAGE(INDEX(ค่าน้ำตาลในเลือด[ค่าน้ำตาลในเลือด (มก./ดล.)],1,1):ค่าน้ำตาลในเลือด[[#This Row],[ค่าน้ำตาลในเลือด (มก./ดล.)]]), "") -> 113.5
B27: =TODAY() -> 2018-11-09 | C27: 12:30:00 | D27: 111 | E27: =IFERROR(AVERAGE(INDEX(ค่าน้ำตาลในเลือด[ค่าน้ำตาลในเลือด (มก./ดล.)],1,1):ค่าน้ำตาลในเลือด[[#This Row],[ค่าน้ำตาลในเลือด (มก./ดล.)]]), "") -> 113.4
B28: =TODAY() -> 2018-11-09 | C28: 18:30:00 | D28: 115 | E28: =IFERROR(AVERAGE(INDEX(ค่าน้ำตาลในเลือด[ค่าน้ำตาลในเลือด (มก./ดล.)],1,1):ค่าน้ำตาลในเลือด[[#This Row],[ค่าน้ำตาลในเลือด (มก./ดล.)]]), "") -> 113.5
B29: =TODAY() -> 2018-11-09 | C29: 18:30:00 | D29: 115 | E29: =IFERROR(AVERAGE(INDEX(ค่าน้ำตาลในเลือด[ค่าน้ำตาลในเลือด (มก./ดล.)],1,1):ค่าน้ำตาลในเลือด[[#This Row],[ค่าน้ำตาลในเลือด (มก./ดล.)]]), "") -> 113.5
